[Event "26th Hit Open-A 2022"]
[Site "Nova Gorica"]
[Date "2022.09.18"]
[Round "5.1"]
[White "Sonis, Francesco"]
[Black "Drazic, Sinisa"]
[Result "0-1"]
[ECO "D45"]
[WhiteElo "2542"]
[BlackElo "2327"]
[Annotator "ChessBase"]
[PlyCount "120"]
[EventDate "2022.09.16"]
[EventType "swiss"]
[EventCountry "SLO"]
[SourceTitle "playchess.com"]
[Source "ChessBase"]
[SourceQuality "1"]
[TimeControl "5400+30"]

1. c4 {[%emt 0:03:43]} c6 {[%emt 0:04:26]} 2. d4 {[%emt 0:00:12]} Nf6 {[%emt 0:00:06]} 3. Nf3 {[%emt 0:00:03]} d5 {[%emt 0:00:02]} 4. e3 {[%emt 0:00:02]} a6 {[%emt 0:00:06]} 5. Nc3 {[%emt 0:04:00]} e6 {[%emt 0:00:41]} 6. b3 {[%emt 0:04:33]} c5 {[%emt 0:01:42]} 7. cxd5 {[%emt 0:00:42]} exd5 {[%emt 0:00:03]} 8. Bb2 {[%emt 0:00:27]} Nc6 {[%emt 0:00:04]} 9. Be2 {[%emt 0:00:18]} Bd6 {[%emt 0:02:44]} 10. dxc5 {[%emt 0:00:28]} Bxc5 {[%emt 0:00:02]} 11. O-O {[%emt 0:00:43]} O-O {[%emt 0:00:25]} 12. Rc1 {[%emt 0:00:15]} Ba7 {[%emt 0:00:18]} 13. Na4 {[%emt 0:05:44]} Ne4 {[%emt 0:00:16]} 14. Ne5 {[%emt 0:06:03]} Qd6 {[%emt 0:06:19]} 15. Nxc6 {[%emt 0:02:50]} bxc6 {[%emt 0:00:10]} 16. Bf3 {[%emt 0:03:11]} Re8 {[%emt 0:10:48]} 17. Bxe4 {[%emt 0:17:39]} Rxe4 {[%emt 0:00:06]} 18. Bd4 {[%emt 0:00:05]} Bxd4 {[%emt 0:22:14]} 19. exd4 {[%emt 0:00:06]} Rh4 {[%emt 0:00:30]} 20. g3 {[%emt 0:01:51]} Bh3 {[%emt 0:00:48]} 21. Qd2 {[%emt 0:30:00]} Bxf1 {[%emt 0:05:21]} 22. gxh4 {[%emt 0:00:04]} Bb5 {[%emt 0:06:32]} 23. Nc3 {[%emt 0:01:30]} h6 {[%emt 0:00:18]} 24. Qe3 {[%emt 0:01:30]} a5 {[%emt 0:11:09]} 25. Kh1 {[%emt 0:04:14]} Qf6 {[%emt 0:04:45]} 26. Rg1 {[%emt 0:01:49]} Kh8 {[%emt 0:01:25]} 27. Rg4 {[%emt 0:00:29]} a4 {[%emt 0:04:21]} 28. bxa4 {[%emt 0:04:29]} Bxa4 {[%emt 0:01:29]} 29. Rf4 {[%emt 0:00:15]} Qe6 {[%emt 0:04:37]} 30. Qxe6 {[%emt 0:03:22]} fxe6 {[%emt 0:00:01]} 31. Rf7 {[%emt 0:00:01]} Bc2 {[%emt 0:00:57]} 32. Rc7 {[%emt 0:00:19]} e5 {[%emt 0:02:01]} 33. dxe5 {[%emt 0:04:50]} d4 {[%emt 0:00:08]} 34. Rxc6 {[%emt 0:00:02]} dxc3 {[%emt 0:01:31]} 35. Rxc3 {[%emt 0:00:06]} Rxa2 {[%emt 0:00:24]} 36. Kg2 {[%emt 0:00:17]} Bf5 {[%emt 0:00:27]} 37. Kg3 {[%emt 0:00:10]} Kg8 {[%emt 0:00:40]} 38. f3 {[%emt 0:00:08]} Ra7 {[%emt 0:00:23]} 39. Rc6 {[%emt 0:00:19]} Kf7 {[%emt 0:00:05]} 40. Rb6 {[%emt 0:00:02]} Ke7 {[%emt 0:00:34]} 41. Kf4 {[%emt 0:00:08]} Be6 {[%emt 0:00:07]} 42. Kg3 {[%emt 0:00:01]} Kf7 {[%emt 0:02:10]} 43. Rd6 {[%emt 0:00:33]} Ra3 {[%emt 0:00:42]} 44. Kf4 {[%emt 0:00:07]} Ra2 {[%emt 0:00:11]} 45. Rb6 {[%emt 0:00:40]} Rxh2 {[%emt 0:00:38]} 46. Rb7+ {[%emt 0:00:28]} Kf8 {[%emt 0:00:09]} 47. Rb8+ {[%emt 0:00:41]} Ke7 {[%emt 0:00:18]} 48. Rb7+ {[%emt 0:00:02]} Bd7 {[%emt 0:00:06]} 49. Ke4 {[%emt 0:00:02]} Rxh4+ {[%emt 0:00:27]} 50. Kd5 {[%emt 0:00:32]} Ra4 {[%emt 0:02:06]} 51. Rb6 {[%emt 0:00:12]} Ra5+ {[%emt 0:01:21]} 52. Ke4 {[%emt 0:00:01]} Be6 {[%emt 0:00:13]} 53. Rb7+ {[%emt 0:00:38]} Bd7 {[%emt 0:00:03]} 54. Rb6 {[%emt 0:00:31]} Ra7 {[%emt 0:00:36]} 55. Rg6 {[%emt 0:01:04]} Kf7 {[%emt 0:00:18]} 56. Rb6 {[%emt 0:00:11]} Be6 {[%emt 0:00:02]} 57. Rb4 {[%emt 0:00:38]} Rc7 {[%emt 0:00:14]} 58. Rb6 {[%emt 0:00:20]} g5 {[%emt 0:01:00]} 59. Rb8 {[%emt 0:00:31]} Rc4+ {[%emt 0:00:11]} 60. Ke3 {[%emt 0:00:25]} Rf4 {[%emt 0:00:20]} 0-1

[Event "26th Hit Open-A 2022"]
[Site "Nova Gorica"]
[Date "2022.09.18"]
[Round "5.2"]
[White "Davies, Nigel R"]
[Black "Seo, Jung Min"]
[Result "1/2-1/2"]
[ECO "D78"]
[WhiteElo "2420"]
[BlackElo "2516"]
[Annotator "ChessBase"]
[PlyCount "63"]
[EventDate "2022.09.16"]
[EventType "swiss"]
[EventCountry "SLO"]
[SourceTitle "playchess.com"]
[Source "ChessBase"]
[SourceQuality "1"]
[TimeControl "5400+30"]

1. Nf3 {[%emt 0:00:33]} d5 {[%emt 0:00:01]} 2. g3 {[%emt 0:00:17]} g6 {[%emt 0:00:51]} 3. Bg2 {[%emt 0:00:14]} Bg7 {[%emt 0:00:04]} 4. d4 {[%emt 0:00:17]} Nf6 {[%emt 0:00:11]} 5. O-O {[%emt 0:00:07]} O-O {[%emt 0:00:03]} 6. c4 {[%emt 0:00:22]} c6 {[%emt 0:00:02]} 7. b3 {[%emt 0:01:07]} Bf5 {[%emt 0:01:18]} 8. Bb2 {[%emt 0:00:22]} Nbd7 {[%emt 0:00:19]} 9. Nc3 {[%emt 0:01:38]} dxc4 {[%emt 0:12:15]} 10. bxc4 {[%emt 0:01:15]} Nb6 {[%emt 0:01:37]} 11. c5 {[%emt 0:06:19]} Nc4 {[%emt 0:00:07]} 12. Qb3 {[%emt 0:00:14]} Nxb2 {[%emt 0:00:24]} 13. Qxb2 {[%emt 0:00:05]} Qc7 {[%emt 0:04:38]} 14. Rac1 {[%emt 0:00:45]} Rfd8 {[%emt 0:02:34]} 15. Rfd1 {[%emt 0:00:41]} Ne4 {[%emt 0:01:29]} 16. e3 {[%emt 0:01:49]} Nxc3 {[%emt 0:01:35]} 17. Qxc3 {[%emt 0:00:06]} Be4 {[%emt 0:01:43]} 18. Ne5 {[%emt 0:09:38]} Bxg2 {[%emt 0:00:25]} 19. Kxg2 {[%emt 0:00:04]} Bxe5 {[%emt 0:00:56]} 20. dxe5 {[%emt 0:00:05]} Rd7 {[%emt 0:06:13]} 21. Rxd7 {[%emt 0:01:28]} Qxd7 {[%emt 0:00:04]} 22. Qd4 {[%emt 0:00:09]} Qe6 {[%emt 0:04:12]} 23. a4 {[%emt 0:00:21]} Qb3 {[%emt 0:10:27]} 24. a5 {[%emt 0:00:55]} Rc8 {[%emt 0:02:17]} 25. e4 {[%emt 0:02:44]} e6 {[%emt 0:03:33]} 26. Rc4 {[%emt 0:02:58]} Qb5 {[%emt 0:00:45]} 27. Ra4 {[%emt 0:04:23]} Rb8 {[%emt 0:01:16]} 28. Ra2 {[%emt 0:02:43]} Kg7 {[%emt 0:00:22]} 29. Qd6 {[%emt 0:03:10]} Rf8 {[%emt 0:00:27]} 30. Qd4 {[%emt 0:00:27]} Rb8 {[%emt 0:01:49]} 31. Qd6 {[%emt 0:00:29]} Rf8 {[%emt 0:00:10]} 32. Qd4 {[%emt 0:00:14]} 1/2-1/2

[Event "26th Hit Open-A 2022"]
[Site "Nova Gorica"]
[Date "2022.09.18"]
[Round "5.3"]
[White "Brilej, Jaka"]
[Black "Stefansson, Vignir Vatnar"]
[Result "0-1"]
[ECO "C01"]
[WhiteElo "2329"]
[BlackElo "2452"]
[Annotator "ChessBase"]
[PlyCount "96"]
[EventDate "2022.09.16"]
[EventType "swiss"]
[EventCountry "SLO"]
[SourceTitle "playchess.com"]
[Source "ChessBase"]
[SourceQuality "1"]
[TimeControl "5400+30"]

1. e4 {[%emt 0:00:03]} e6 {[%emt 0:02:20]} 2. d4 {[%emt 0:00:24]} d5 {[%emt 0:00:09]} 3. Bd3 {[%emt 0:00:07]} dxe4 {[%emt 0:00:30]} 4. Bxe4 {[%emt 0:00:08]} Nf6 {[%emt 0:00:08]} 5. Bf3 {[%emt 0:00:06]} Bd6 {[%emt 0:00:11]} 6. Ne2 {[%emt 0:01:30]} O-O {[%emt 0:00:10]} 7. O-O {[%emt 0:03:41]} Nbd7 {[%emt 0:00:58]} 8. Nbc3 {[%emt 0:16:39]} e5 {[%emt 0:00:25]} 9. g3 {[%emt 0:00:51]} Re8 {[%emt 0:02:05]} 10. Bg2 {[%emt 0:01:41]} c6 {[%emt 0:08:27]} 11. Bg5 {[%emt 0:06:15]} h6 {[%emt 0:00:23]} 12. dxe5 {[%emt 0:00:54]} Bxe5 {[%emt 0:01:16]} 13. Bf4 {[%emt 0:00:38]} Qb6 {[%emt 0:04:01]} 14. Rb1 {[%emt 0:10:12]} Bxf4 {[%emt 0:00:11]} 15. Nxf4 {[%emt 0:00:09]} Ne5 {[%emt 0:00:12]} 16. h3 {[%emt 0:07:13]} Bf5 {[%emt 0:00:58]} 17. Qc1 {[%emt 0:03:43]} Rad8 {[%emt 0:04:34]} 18. Rd1 {[%emt 0:00:43]} Qc5 {[%emt 0:00:16]} 19. Rxd8 {[%emt 0:01:31]} Rxd8 {[%emt 0:00:09]} 20. Qe1 {[%emt 0:00:36]} g5 {[%emt 0:08:48]} 21. b4 {[%emt 0:04:39]} Qe7 {[%emt 0:00:16]} 22. Nd3 {[%emt 0:00:15]} Bxd3 {[%emt 0:00:06]} 23. cxd3 {[%emt 0:00:05]} Rxd3 {[%emt 0:00:06]} 24. Ne4 {[%emt 0:01:39]} Nf3+ {[%emt 0:04:43]} 25. Bxf3 {[%emt 0:00:17]} Rxf3 {[%emt 0:00:05]} 26. Nxf6+ {[%emt 0:01:15]} Qxf6 {[%emt 0:00:07]} 27. Rd1 {[%emt 0:01:13]} Kg7 {[%emt 0:02:32]} 28. Rd7 {[%emt 0:02:50]} Ra3 {[%emt 0:06:33]} 29. Qb1 {[%emt 0:03:17]} b6 {[%emt 0:02:22]} 30. Rd2 {[%emt 0:03:28]} h5 {[%emt 0:04:24]} 31. Rd3 {[%emt 0:04:17]} Rc3 {[%emt 0:03:20]} 32. Rxc3 {[%emt 0:00:46]} Qxc3 {[%emt 0:00:05]} 33. Qf5 {[%emt 0:00:33]} Qf6 {[%emt 0:00:46]} 34. Qe4 {[%emt 0:01:35]} Qe6 {[%emt 0:00:15]} 35. Qd4+ {[%emt 0:00:28]} f6 {[%emt 0:00:30]} 36. a4 {[%emt 0:03:07]} Kg6 {[%emt 0:23:39]} 37. Qd3+ {[%emt 0:05:36]} f5 {[%emt 0:02:48]} 38. Qd8 {[%emt 0:00:50]} f4 {[%emt 0:02:55]} 39. h4 {[%emt 0:02:11]} gxh4 {[%emt 0:00:16]} 40. gxh4 {[%emt 0:00:09]} Qg4+ {[%emt 0:03:27]} 41. Kf1 {[%emt 0:00:27]} f3 {[%emt 0:00:17]} 42. Qd3+ {[%emt 0:02:31]} Kf6 {[%emt 0:03:05]} 43. Qd6+ {[%emt 0:00:16]} Kf5 {[%emt 0:00:06]} 44. Qf8+ {[%emt 0:02:52]} Ke4 {[%emt 0:00:33]} 45. Qe7+ {[%emt 0:00:07]} Kd5 {[%emt 0:03:27]} 46. Qe3 {[%emt 0:00:29]} Qe4 {[%emt 0:01:06]} 47. Qd2+ {[%emt 0:01:09]} Kc4 {[%emt 0:00:14]} 48. b5 {[%emt 0:01:12]} Qb1+ {[%emt 0:00:10]} 0-1

[Event "26th Hit Open-A 2022"]
[Site "Nova Gorica"]
[Date "2022.09.18"]
[Round "5.4"]
[White "Holtel, Jasper"]
[Black "Kaasen, Tor Fredrik"]
[Result "1/2-1/2"]
[ECO "D78"]
[WhiteElo "2406"]
[BlackElo "2442"]
[Annotator "ChessBase"]
[PlyCount "32"]
[EventDate "2022.09.16"]
[EventType "swiss"]
[EventCountry "SLO"]
[SourceTitle "playchess.com"]
[Source "ChessBase"]
[SourceQuality "1"]
[TimeControl "5400+30"]

1. Nf3 {[%emt 0:00:02]} d5 {[%emt 0:02:54]} 2. g3 {[%emt 0:01:54]} g6 {[%emt 0:00:28]} 3. Bg2 {[%emt 0:00:10]} Bg7 {[%emt 0:00:14]} 4. d4 {[%emt 0:00:09]} Nf6 {[%emt 0:00:23]} 5. O-O {[%emt 0:00:11]} O-O {[%emt 0:00:14]} 6. c4 {[%emt 0:00:05]} c6 {[%emt 0:00:31]} 7. b3 {[%emt 0:00:34]} Bf5 {[%emt 0:01:13]} 8. Bb2 {[%emt 0:00:29]} Ne4 {[%emt 0:01:19]} 9. e3 {[%emt 0:01:15]} Nd7 {[%emt 0:01:23]} 10. Qe2 {[%emt 0:01:53]} a5 {[%emt 0:02:19]} 11. Nc3 {[%emt 0:11:21]} Nxc3 {[%emt 0:06:30]} 12. Bxc3 {[%emt 0:00:10]} Nf6 {[%emt 0:05:25]} 13. Nd2 {[%emt 0:10:09]} Bg4 {[%emt 0:02:21]} 14. Qd3 {[%emt 0:03:47]} Bf5 {[%emt 0:00:53]} 15. Qe2 {[%emt 0:00:10]} Bg4 {[%emt 0:00:12]} 16. Qd3 {[%emt 0:02:30]} Bf5 {[%emt 0:00:38]} 1/2-1/2

[Event "26th Hit Open-A 2022"]
[Site "Nova Gorica"]
[Date "2022.09.18"]
[Round "5.5"]
[White "Ghazarian, Kirk"]
[Black "Royal, Shreyas"]
[Result "1/2-1/2"]
[ECO "A13"]
[WhiteElo "2440"]
[BlackElo "2412"]
[Annotator "ChessBase"]
[PlyCount "61"]
[EventDate "2022.09.16"]
[EventType "swiss"]
[EventCountry "SLO"]
[SourceTitle "playchess.com"]
[Source "ChessBase"]
[SourceQuality "1"]
[TimeControl "5400+30"]

1. c4 {[%emt 0:06:17]} Nf6 {[%emt 0:00:09]} 2. Nf3 {[%emt 0:00:05]} e6 {[%emt 0:00:06]} 3. g3 {[%emt 0:00:07]} d5 {[%emt 0:00:04]} 4. Bg2 {[%emt 0:00:09]} dxc4 {[%emt 0:00:05]} 5. Qa4+ {[%emt 0:00:10]} c6 {[%emt 0:00:05]} 6. Qxc4 {[%emt 0:00:05]} b5 {[%emt 0:00:05]} 7. Qc2 {[%emt 0:00:18]} Bb7 {[%emt 0:00:29]} 8. O-O {[%emt 0:01:25]} Nbd7 {[%emt 0:01:05]} 9. Nc3 {[%emt 0:02:59]} a6 {[%emt 0:04:34]} 10. b3 {[%emt 0:07:17]} c5 {[%emt 0:03:25]} 11. Bb2 {[%emt 0:00:15]} Be7 {[%emt 0:00:23]} 12. a4 {[%emt 0:03:45]} b4 {[%emt 0:06:42]} 13. Nd1 {[%emt 0:00:17]} O-O {[%emt 0:00:09]} 14. Ne3 {[%emt 0:01:23]} a5 {[%emt 0:06:04]} 15. Nc4 {[%emt 0:01:13]} h6 {[%emt 0:00:54]} 16. Rac1 {[%emt 0:01:00]} Bd5 {[%emt 0:08:52]} 17. Rfd1 {[%emt 0:00:56]} Nb6 {[%emt 0:01:33]} 18. Nfe5 {[%emt 0:05:07]} Nxc4 {[%emt 0:05:03]} 19. Nxc4 {[%emt 0:00:23]} Bxg2 {[%emt 0:00:05]} 20. Kxg2 {[%emt 0:00:02]} Qd5+ {[%emt 0:00:08]} 21. Kg1 {[%emt 0:01:05]} Qh5 {[%emt 0:00:36]} 22. Bxf6 {[%emt 0:02:33]} Bxf6 {[%emt 0:01:05]} 23. Qe4 {[%emt 0:03:13]} Rfd8 {[%emt 0:00:40]} 24. Kg2 {[%emt 0:01:52]} Ra7 {[%emt 0:04:20]} 25. Rc2 {[%emt 0:03:23]} Qd5 {[%emt 0:10:09]} 26. Qf3 {[%emt 0:00:28]} Bd4 {[%emt 0:05:35]} 27. Rdc1 {[%emt 0:02:54]} f5 {[%emt 0:00:08]} 28. Nb2 {[%emt 0:09:01]} Rc7 {[%emt 0:04:04]} 29. Nd1 {[%emt 0:01:23]} Rdc8 {[%emt 0:00:49]} 30. Rc4 {[%emt 0:24:00]} g5 {[%emt 0:04:04]} 31. e3 {[%emt 0:00:03]} 1/2-1/2

[Event "26th Hit Open-A 2022"]
[Site "Nova Gorica"]
[Date "2022.09.18"]
[Round "5.6"]
[White "Wadsworth, Matthew J"]
[Black "Sharan, Rao"]
[Result "1-0"]
[ECO "A14"]
[WhiteElo "2423"]
[BlackElo "2312"]
[Annotator "ChessBase"]
[PlyCount "57"]
[EventDate "2022.09.16"]
[EventType "swiss"]
[EventCountry "SLO"]
[SourceTitle "playchess.com"]
[Source "ChessBase"]
[SourceQuality "1"]
[TimeControl "5400+30"]

1. Nf3 {[%emt 0:00:04]} Nf6 {[%emt 0:01:35]} 2. g3 {[%emt 0:00:14]} d5 {[%emt 0:00:02]} 3. Bg2 {[%emt 0:00:08]} e6 {[%emt 0:00:11]} 4. O-O {[%emt 0:00:12]} Be7 {[%emt 0:00:28]} 5. c4 {[%emt 0:00:09]} O-O {[%emt 0:00:15]} 6. b3 {[%emt 0:00:18]} Nbd7 {[%emt 0:02:56]} 7. Bb2 {[%emt 0:04:05]} b6 {[%emt 0:01:14]} 8. cxd5 {[%emt 0:01:16]} Nxd5 {[%emt 0:01:25]} 9. d4 {[%emt 0:00:56]} Bb7 {[%emt 0:01:03]} 10. Re1 {[%emt 0:00:16]} c5 {[%emt 0:01:37]} 11. e4 {[%emt 0:00:16]} N5f6 {[%emt 0:00:37]} 12. Nc3 {[%emt 0:00:09]} cxd4 {[%emt 0:01:22]} 13. Nxd4 {[%emt 0:00:17]} Ne5 {[%emt 0:11:37]} 14. Qe2 {[%emt 0:00:07]} a6 {[%emt 0:14:05]} 15. Red1 {[%emt 0:06:23]} Qb8 {[%emt 0:01:17]} 16. Rac1 {[%emt 0:02:28]} Qa7 {[%emt 0:10:56]} 17. Nd5 {[%emt 0:24:33]} exd5 {[%emt 0:05:14]} 18. Nf5 {[%emt 0:00:05]} Ng6 {[%emt 0:05:28]} 19. e5 {[%emt 0:00:08]} Ne4 {[%emt 0:17:54]} 20. Bxe4 {[%emt 0:01:18]} dxe4 {[%emt 0:00:02]} 21. Rd7 {[%emt 0:00:32]} Bc5 {[%emt 0:02:47]} 22. e6 {[%emt 0:01:15]} Rac8 {[%emt 0:07:04]} 23. exf7+ {[%emt 0:14:54]} Rxf7 {[%emt 0:00:05]} 24. Rxf7 {[%emt 0:00:05]} Kxf7 {[%emt 0:06:02]} 25. Qc4+ {[%emt 0:00:27]} Ke8 {[%emt 0:00:17]} 26. Qe6+ {[%emt 0:00:42]} Ne7 {[%emt 0:00:19]} 27. Rxc5 {[%emt 0:00:30]} Bc6 {[%emt 0:01:02]} 28. Nd6+ {[%emt 0:00:35]} Kd8 {[%emt 0:00:20]} 29. Nxc8 {[%emt 0:00:17]} 1-0

[Event "26th Hit Open-A 2022"]
[Site "Nova Gorica"]
[Date "2022.09.18"]
[Round "5.7"]
[White "Thybo, Jesper Sondergaard"]
[Black "Van Dael, Siem"]
[Result "1/2-1/2"]
[ECO "C88"]
[WhiteElo "2516"]
[BlackElo "2316"]
[Annotator "ChessBase"]
[PlyCount "50"]
[EventDate "2022.09.16"]
[EventType "swiss"]
[EventCountry "SLO"]
[SourceTitle "playchess.com"]
[Source "ChessBase"]
[SourceQuality "1"]
[TimeControl "5400+30"]

1. e4 {[%emt 0:02:15]} e5 {[%emt 0:00:06]} 2. Nf3 {[%emt 0:00:10]} Nc6 {[%emt 0:00:05]} 3. Bb5 {[%emt 0:00:20]} a6 {[%emt 0:00:07]} 4. Ba4 {[%emt 0:00:07]} Nf6 {[%emt 0:00:06]} 5. O-O {[%emt 0:00:24]} Be7 {[%emt 0:00:08]} 6. Re1 {[%emt 0:00:33]} b5 {[%emt 0:00:07]} 7. Bb3 {[%emt 0:00:06]} O-O {[%emt 0:00:05]} 8. a4 {[%emt 0:00:26]} b4 {[%emt 0:00:14]} 9. d4 {[%emt 0:00:25]} d6 {[%emt 0:00:08]} 10. dxe5 {[%emt 0:00:13]} dxe5 {[%emt 0:00:07]} 11. Nbd2 {[%emt 0:00:46]} Bc5 {[%emt 0:00:14]} 12. Qe2 {[%emt 0:00:57]} Qe7 {[%emt 0:04:10]} 13. h3 {[%emt 0:00:53]} Rb8 {[%emt 0:00:52]} 14. a5 {[%emt 0:04:35]} Rd8 {[%emt 0:06:39]} 15. Bc4 {[%emt 0:03:50]} Rd6 {[%emt 0:00:33]} 16. Bxa6 {[%emt 0:12:46]} Nd4 {[%emt 0:14:00]} 17. Nxd4 {[%emt 0:00:29]} Bxa6 {[%emt 0:00:07]} 18. Nf5 {[%emt 0:00:50]} Qd7 {[%emt 0:00:05]} 19. Nc4 {[%emt 0:02:11]} Rc6 {[%emt 0:03:58]} 20. b3 {[%emt 0:07:01]} g6 {[%emt 0:03:27]} 21. Nh6+ {[%emt 0:08:34]} Kg7 {[%emt 0:00:08]} 22. Bg5 {[%emt 0:00:21]} Bd4 {[%emt 0:03:47]} 23. Bxf6+ {[%emt 0:12:28]} Rxf6 {[%emt 0:00:38]} 24. Ng4 {[%emt 0:00:05]} Re6 {[%emt 0:03:34]} 25. Rad1 {[%emt 0:08:56]} Qc6 {[%emt 0:02:23]} 1/2-1/2

[Event "26th Hit Open-A 2022"]
[Site "Nova Gorica"]
[Date "2022.09.18"]
[Round "5.8"]
[White "Lavrencic, Matic"]
[Black "Subelj, Jan"]
[Result "1/2-1/2"]
[ECO "B11"]
[WhiteElo "2274"]
[BlackElo "2505"]
[Annotator "ChessBase"]
[PlyCount "120"]
[EventDate "2022.09.16"]
[EventType "swiss"]
[EventCountry "SLO"]
[SourceTitle "playchess.com"]
[Source "ChessBase"]
[SourceQuality "1"]
[TimeControl "5400+30"]

1. e4 {[%emt 0:00:04]} c6 {[%emt 0:00:40]} 2. Nc3 {[%emt 0:00:43]} d5 {[%emt 0:00:37]} 3. Nf3 {[%emt 0:00:11]} Bg4 {[%emt 0:01:06]} 4. h3 {[%emt 0:00:19]} Bxf3 {[%emt 0:00:55]} 5. Qxf3 {[%emt 0:00:07]} e6 {[%emt 0:01:09]} 6. Be2 {[%emt 0:00:20]} Bc5 {[%emt 0:02:16]} 7. O-O {[%emt 0:00:14]} Nf6 {[%emt 0:01:21]} 8. Rd1 {[%emt 0:05:42]} Bd4 {[%emt 0:03:19]} 9. Qf4 {[%emt 0:04:26]} Bxc3 {[%emt 0:02:02]} 10. bxc3 {[%emt 0:00:12]} Nxe4 {[%emt 0:00:37]} 11. Rb1 {[%emt 0:03:40]} b6 {[%emt 0:01:16]} 12. Ba3 {[%emt 0:00:23]} Qf6 {[%emt 0:05:11]} 13. Qe3 {[%emt 0:02:30]} c5 {[%emt 0:01:31]} 14. Bb5+ {[%emt 0:02:33]} Nd7 {[%emt 0:00:37]} 15. c4 {[%emt 0:03:20]} Nd6 {[%emt 0:00:44]} 16. cxd5 {[%emt 0:02:21]} Nxb5 {[%emt 0:00:17]} 17. dxe6 {[%emt 0:02:12]} O-O {[%emt 0:00:49]} 18. Rxb5 {[%emt 0:06:23]} Rae8 {[%emt 0:04:51]} 19. d4 {[%emt 0:23:02]} Rxe6 {[%emt 0:02:30]} 20. Qf3 {[%emt 0:01:01]} Qxf3 {[%emt 0:06:52]} 21. gxf3 {[%emt 0:00:13]} Rd6 {[%emt 0:04:42]} 22. Rbb1 {[%emt 0:06:02]} Rc6 {[%emt 0:02:06]} 23. dxc5 {[%emt 0:07:25]} Nxc5 {[%emt 0:00:06]} 24. Rb5 {[%emt 0:00:42]} h6 {[%emt 0:01:32]} 25. Bxc5 {[%emt 0:00:31]} bxc5 {[%emt 0:00:08]} 26. Rd7 {[%emt 0:00:46]} Ra6 {[%emt 0:01:12]} 27. Rxc5 {[%emt 0:00:42]} Rxa2 {[%emt 0:00:08]} 28. Rcc7 {[%emt 0:00:22]} a5 {[%emt 0:00:37]} 29. Ra7 {[%emt 0:00:24]} Rxc2 {[%emt 0:01:24]} 30. Rxa5 {[%emt 0:00:09]} g6 {[%emt 0:00:11]} 31. Rad5 {[%emt 0:00:31]} Rcc8 {[%emt 0:01:18]} 32. Re7 {[%emt 0:00:53]} Kg7 {[%emt 0:00:08]} 33. Kg2 {[%emt 0:00:47]} Rc6 {[%emt 0:00:20]} 34. Rd4 {[%emt 0:01:08]} Rf6 {[%emt 0:00:26]} 35. Kg3 {[%emt 0:00:40]} Ra8 {[%emt 0:01:06]} 36. Rf4 {[%emt 0:00:43]} Ra5 {[%emt 0:00:08]} 37. Rxf6 {[%emt 0:00:36]} Kxf6 {[%emt 0:00:05]} 38. Re4 {[%emt 0:00:11]} Rg5+ {[%emt 0:00:09]} 39. Kh2 {[%emt 0:00:15]} Re5 {[%emt 0:00:16]} 40. Ra4 {[%emt 0:00:26]} Kf5 {[%emt 0:00:11]} 41. Kg2 {[%emt 0:00:31]} g5 {[%emt 0:02:17]} 42. Rb4 {[%emt 0:00:22]} Ra5 {[%emt 0:00:57]} 43. Rc4 {[%emt 0:00:13]} h5 {[%emt 0:01:55]} 44. Rb4 {[%emt 0:00:16]} Kg6 {[%emt 0:00:16]} 45. Rb6+ {[%emt 0:00:16]} f6 {[%emt 0:00:06]} 46. Rb4 {[%emt 0:00:09]} Rf5 {[%emt 0:00:10]} 47. Ra4 {[%emt 0:00:25]} Kf7 {[%emt 0:00:25]} 48. Ra7+ {[%emt 0:00:24]} Kg6 {[%emt 0:00:18]} 49. Ra4 {[%emt 0:00:07]} Rf4 {[%emt 0:00:30]} 50. Ra5 {[%emt 0:00:13]} Kf7 {[%emt 0:00:14]} 51. Ra6 {[%emt 0:00:13]} Ke7 {[%emt 0:00:18]} 52. Ra7+ {[%emt 0:00:22]} Ke6 {[%emt 0:00:05]} 53. Ra6+ {[%emt 0:00:24]} Ke5 {[%emt 0:00:08]} 54. Kg3 {[%emt 0:00:27]} h4+ {[%emt 0:00:19]} 55. Kg2 {[%emt 0:00:06]} Rb4 {[%emt 0:00:17]} 56. Ra3 {[%emt 0:00:24]} Kf4 {[%emt 0:00:32]} 57. Rc3 {[%emt 0:00:40]} Rd4 {[%emt 0:00:07]} 58. Ra3 {[%emt 0:00:17]} Rc4 {[%emt 0:00:05]} 59. Rb3 {[%emt 0:00:13]} Rd4 {[%emt 0:00:02]} 60. Ra3 {[%emt 0:00:06]} Rc4 {[%emt 0:00:07]} 1/2-1/2

[Event "26th Hit Open-A 2022"]
[Site "Nova Gorica"]
[Date "2022.09.18"]
[Round "5.9"]
[White "Diermair, Andreas"]
[Black "Manish Anto Cristiano F"]
[Result "0-1"]
[ECO "D78"]
[WhiteElo "2468"]
[BlackElo "2249"]
[Annotator "ChessBase"]
[PlyCount "98"]
[EventDate "2022.09.16"]
[EventType "swiss"]
[EventCountry "SLO"]
[SourceTitle "playchess.com"]
[Source "ChessBase"]
[SourceQuality "1"]
[TimeControl "5400+30"]

1. Nf3 {[%emt 0:01:14]} d5 {[%emt 0:00:22]} 2. g3 {[%emt 0:00:09]} g6 {[%emt 0:00:12]} 3. Bg2 {[%emt 0:02:19]} Bg7 {[%emt 0:00:32]} 4. d4 {[%emt 0:00:07]} c6 {[%emt 0:00:15]} 5. O-O {[%emt 0:01:26]} Nf6 {[%emt 0:00:23]} 6. c4 {[%emt 0:01:07]} O-O {[%emt 0:02:02]} 7. a4 {[%emt 0:03:25]} Bf5 {[%emt 0:08:21]} 8. Nc3 {[%emt 0:02:54]} Ne4 {[%emt 0:11:30]} 9. a5 {[%emt 0:12:08]} Nxc3 {[%emt 0:04:08]} 10. bxc3 {[%emt 0:00:02]} Be4 {[%emt 0:00:14]} 11. Qb3 {[%emt 0:06:47]} Qc8 {[%emt 0:01:40]} 12. Bg5 {[%emt 0:03:32]} Re8 {[%emt 0:04:16]} 13. Rfc1 {[%emt 0:02:31]} e6 {[%emt 0:04:11]} 14. Bf4 {[%emt 0:05:17]} dxc4 {[%emt 0:05:21]} 15. Qxc4 {[%emt 0:00:12]} Nd7 {[%emt 0:00:17]} 16. Bd6 {[%emt 0:04:19]} b6 {[%emt 0:04:32]} 17. Bh3 {[%emt 0:04:46]} c5 {[%emt 0:04:34]} 18. Nd2 {[%emt 0:09:57]} Bd5 {[%emt 0:02:08]} 19. Qd3 {[%emt 0:01:51]} Qc6 {[%emt 0:03:29]} 20. Bf4 {[%emt 0:00:09]} c4 {[%emt 0:00:51]} 21. Qc2 {[%emt 0:02:28]} f5 {[%emt 0:00:53]} 22. Re1 {[%emt 0:01:42]} e5 {[%emt 0:00:36]} 23. e4 {[%emt 0:02:06]} fxe4 {[%emt 0:01:25]} 24. Bxd7 {[%emt 0:02:51]} Qxd7 {[%emt 0:00:33]} 25. dxe5 {[%emt 0:00:14]} Bxe5 {[%emt 0:03:11]} 26. Bxe5 {[%emt 0:01:27]} Rxe5 {[%emt 0:00:10]} 27. axb6 {[%emt 0:00:47]} e3 {[%emt 0:09:33]} 28. fxe3 {[%emt 0:01:06]} axb6 {[%emt 0:00:50]} 29. Rxa8+ {[%emt 0:00:58]} Bxa8 {[%emt 0:00:02]} 30. e4 {[%emt 0:01:26]} b5 {[%emt 0:00:34]} 31. Nf3 {[%emt 0:00:45]} Re8 {[%emt 0:00:39]} 32. Nd4 {[%emt 0:03:09]} b4 {[%emt 0:05:30]} 33. Qe2 {[%emt 0:03:16]} Rxe4 {[%emt 0:04:16]} 34. Qxc4+ {[%emt 0:00:18]} Bd5 {[%emt 0:00:10]} 35. Qf1 {[%emt 0:00:11]} Rxe1 {[%emt 0:00:22]} 36. Qxe1 {[%emt 0:00:02]} b3 {[%emt 0:00:08]} 37. Qe2 {[%emt 0:02:27]} Qa4 {[%emt 0:02:26]} 38. Qe5 {[%emt 0:06:51]} Qa8 {[%emt 0:05:26]} 39. Ne6 {[%emt 0:00:41]} Qa1+ {[%emt 0:04:12]} 40. Kf2 {[%emt 0:00:04]} Qa7+ {[%emt 0:00:05]} 41. Nd4 {[%emt 0:00:49]} b2 {[%emt 0:03:32]} 42. Qe8+ {[%emt 0:01:01]} Kg7 {[%emt 0:00:01]} 43. Qe5+ {[%emt 0:00:07]} Kf8 {[%emt 0:00:04]} 44. Qd6+ {[%emt 0:02:06]} Kg8 {[%emt 0:00:07]} 45. Qb4 {[%emt 0:02:51]} Qb7 {[%emt 0:00:35]} 46. Nb5 {[%emt 0:00:19]} Qf7+ {[%emt 0:00:45]} 47. Ke1 {[%emt 0:01:32]} Bc4 {[%emt 0:00:11]} 48. Qxb2 {[%emt 0:01:51]} Qf1+ {[%emt 0:00:06]} 49. Kd2 {[%emt 0:00:00]} Qe2+ {[%emt 0:00:08]} 0-1